[Event "Polgar Challenge 2021"]
[Site "Online"]
[Date "2021.04.04"]
[Round "11.2"]
[White "Liang, Awonder"]
[Black "Salimova, Nurgyul"]
[Result "1-0"]
[ECO "C55"]
[WhiteElo "2592"]
[BlackElo "2397"]
[Annotator "ChessBase"]
[PlyCount "67"]
[EventDate "2021.04.08"]
[EventType "tourn"]
[EventCountry "NET"]
[SourceTitle "playchess.com"]
[Source "ChessBase"]
[SourceQuality "1"]
[TimeControl "600+5"]

1. e4 {[%emt 0:00:00]} e5 {[%emt 0:00:00]} 2. Nf3 {[%emt 0:00:08]} Nc6 {[%emt 0:00:00]} 3. Bc4 {[%emt 0:00:05]} Nf6 {[%emt 0:00:06]} 4. d3 {[%emt 0:00:02]} Be7 {[%emt 0:00:05]} 5. O-O {[%emt 0:00:09]} O-O {[%emt 0:00:08]} 6. a4 {[%emt 0:00:05]} d6 {[%emt 0:00:07]} 7. h3 {[%emt 0:00:02]} h6 {[%emt 0:00:23]} 8. Re1 {[%emt 0:00:12]} Kh8 {[%emt 0:01:06]} 9. c3 {[%emt 0:00:16]} Nh7 {[%emt 0:01:26]} 10. d4 {[%emt 0:02:13]} f5 {[%emt 0:00:33]} 11. Bd5 {[%emt 0:01:27]} exd4 {[%emt 0:02:04]} 12. cxd4 {[%emt 0:00:08]} Nb4 {[%emt 0:00:44]} 13. Nc3 {[%emt 0:00:17]} c6 {[%emt 0:00:16]} 14. Bb3 {[%emt 0:00:03]} fxe4 {[%emt 0:00:05]} 15. Nxe4 {[%emt 0:00:01]} d5 {[%emt 0:00:18]} 16. Ne5 {[%emt 0:00:29]} Kg8 {[%emt 0:01:55]} 17. Bd2 {[%emt 0:00:58]} a5 {[%emt 0:00:18]} 18. Ng3 {[%emt 0:00:17]} Qd6 {[%emt 0:00:19]} 19. Qh5 {[%emt 0:00:22]} Bd7 {[%emt 0:00:34]} 20. Ng6 {[%emt 0:01:28]} Rf7 {[%emt 0:00:12]} 21. Ne4 {[%emt 0:01:43]} Qc7 {[%emt 0:00:12]} 22. Bf4 {[%emt 0:00:01]} Qd8 {[%emt 0:00:12]} 23. Bd6 {[%emt 0:00:15]} Bf6 {[%emt 0:00:26]} 24. Bxb4 {[%emt 0:00:08]} axb4 {[%emt 0:00:02]} 25. Nd6 {[%emt 0:00:01]} Bg4 {[%emt 0:00:23]} 26. Bxd5 {[%emt 0:00:08]} cxd5 {[%emt 0:00:06]} 27. Qxd5 {[%emt 0:00:01]} Ng5 {[%emt 0:00:06]} 28. hxg4 {[%emt 0:00:20]} Kh7 {[%emt 0:00:01]} 29. Qf5 {[%emt 0:00:04]} Kg8 {[%emt 0:00:09]} 30. Nxf7 {[%emt 0:00:10]} Nxf7 {[%emt 0:00:05]} 31. Re6 {[%emt 0:00:05]} Qxd4 {[%emt 0:00:02]} 32. Rae1 {[%emt 0:00:02]} Qd7 {[%emt 0:00:05]} 33. Re7 {[%emt 0:00:08]} Qc6 {[%emt 0:00:12]} 34. Rxf7 {[%emt 0:00:03]} 1-0

[Event "Polgar Challenge 2021"]
[Site "Online"]
[Date "2021.04.04"]
[Round "11.4"]
[White "Shuvalova, Polina"]
[Black "Yip, Carissa"]
[Result "1-0"]
[ECO "B08"]
[WhiteElo "2476"]
[BlackElo "2430"]
[Annotator "ChessBase"]
[PlyCount "89"]
[EventDate "2021.04.08"]
[EventType "tourn"]
[EventCountry "NET"]
[SourceTitle "playchess.com"]
[Source "ChessBase"]
[SourceQuality "1"]
[TimeControl "600+5"]

1. d4 {[%emt 0:00:00]} g6 {[%emt 0:00:00]} 2. e4 {[%emt 0:00:39]} Bg7 {[%emt 0:00:00]} 3. Nc3 {[%emt 0:00:01]} d6 {[%emt 0:00:02]} 4. Be3 {[%emt 0:00:15]} c6 {[%emt 0:00:09]} 5. Nf3 {[%emt 0:00:32]} Nd7 {[%emt 0:00:06]} 6. a4 {[%emt 0:00:10]} Qa5 {[%emt 0:00:25]} 7. Qd2 {[%emt 0:00:06]} Ngf6 {[%emt 0:00:42]} 8. h3 {[%emt 0:00:04]} O-O {[%emt 0:00:19]} 9. Bd3 {[%emt 0:00:15]} e5 {[%emt 0:00:19]} 10. O-O {[%emt 0:00:10]} Re8 {[%emt 0:00:12]} 11. Rfe1 {[%emt 0:00:34]} Nf8 {[%emt 0:00:31]} 12. Rab1 {[%emt 0:00:41]} Qc7 {[%emt 0:00:09]} 13. b4 {[%emt 0:00:37]} Ne6 {[%emt 0:00:19]} 14. dxe5 {[%emt 0:00:11]} dxe5 {[%emt 0:00:01]} 15. Ne2 {[%emt 0:00:03]} Bd7 {[%emt 0:00:28]} 16. c3 {[%emt 0:00:36]} Rad8 {[%emt 0:00:14]} 17. Qc2 {[%emt 0:00:13]} c5 {[%emt 0:00:35]} 18. Ng3 {[%emt 0:00:36]} b6 {[%emt 0:01:15]} 19. Red1 {[%emt 0:01:37]} Bc6 {[%emt 0:00:37]} 20. b5 {[%emt 0:00:13]} Ba8 {[%emt 0:00:05]} 21. Bc4 {[%emt 0:00:14]} Nf4 {[%emt 0:01:02]} 22. Ng5 {[%emt 0:00:17]} Rxd1+ {[%emt 0:00:41]} 23. Rxd1 {[%emt 0:00:00]} Rf8 {[%emt 0:00:01]} 24. Qa2 {[%emt 0:00:24]} Bb7 {[%emt 0:00:25]} 25. a5 {[%emt 0:00:37]} h6 {[%emt 0:00:37]} 26. Nxf7 {[%emt 0:00:16]} Rxf7 {[%emt 0:00:01]} 27. a6 {[%emt 0:00:36]} Bxe4 {[%emt 0:00:09]} 28. Bxf7+ {[%emt 0:00:44]} Qxf7 {[%emt 0:00:01]} 29. Rd8+ {[%emt 0:00:02]} Bf8 {[%emt 0:00:02]} 30. Qxf7+ {[%emt 0:00:01]} Kxf7 {[%emt 0:00:01]} 31. Nxe4 {[%emt 0:00:07]} Nxe4 {[%emt 0:00:02]} 32. Bxf4 {[%emt 0:00:15]} exf4 {[%emt 0:00:02]} 33. Rd7+ {[%emt 0:00:01]} Ke6 {[%emt 0:01:26]} 34. Rxa7 {[%emt 0:00:00]} Nd6 {[%emt 0:00:01]} 35. Ra8 {[%emt 0:00:53]} Nxb5 {[%emt 0:00:48]} 36. Rxf8 {[%emt 0:00:05]} Kd5 {[%emt 0:00:16]} 37. Rxf4 {[%emt 0:00:26]} Kc6 {[%emt 0:00:16]} 38. Rf6+ {[%emt 0:00:23]} Kc7 {[%emt 0:00:02]} 39. c4 {[%emt 0:00:04]} Nd4 {[%emt 0:00:13]} 40. Rxg6 {[%emt 0:00:07]} b5 {[%emt 0:00:03]} 41. cxb5 {[%emt 0:00:05]} Nxb5 {[%emt 0:00:02]} 42. Rxh6 {[%emt 0:00:01]} c4 {[%emt 0:00:02]} 43. Rh4 {[%emt 0:00:03]} c3 {[%emt 0:00:01]} 44. Rc4+ {[%emt 0:00:06]} Kb6 {[%emt 0:00:06]} 45. h4 {[%emt 0:00:01]} 1-0

[Event "Polgar Challenge 2021"]
[Site "Online"]
[Date "2021.04.04"]
[Round "11.5"]
[White "Bjerre, Jonas Buhl"]
[Black "Lei, Tingjie"]
[Result "1-0"]
[ECO "E04"]
[WhiteElo "2550"]
[BlackElo "2505"]
[Annotator "ChessBase"]
[PlyCount "135"]
[EventDate "2021.04.08"]
[EventType "tourn"]
[EventCountry "NET"]
[SourceTitle "playchess.com"]
[Source "ChessBase"]
[SourceQuality "1"]
[TimeControl "600+5"]

1. d4 {[%emt 0:00:00]} Nf6 {[%emt 0:00:00]} 2. c4 {[%emt 0:00:00]} e6 {[%emt 0:00:00]} 3. Nf3 {[%emt 0:00:00]} d5 {[%emt 0:00:00]} 4. g3 {[%emt 0:00:00]} dxc4 {[%emt 0:00:11]} 5. Bg2 {[%emt 0:00:05]} Nc6 {[%emt 0:00:03]} 6. Qa4 {[%emt 0:00:33]} Bb4+ {[%emt 0:00:04]} 7. Bd2 {[%emt 0:00:39]} Nd5 {[%emt 0:00:04]} 8. Bxb4 {[%emt 0:00:42]} Ndxb4 {[%emt 0:00:03]} 9. Ne5 {[%emt 0:00:17]} O-O {[%emt 0:02:13]} 10. Nxc6 {[%emt 0:00:06]} Nxc6 {[%emt 0:00:04]} 11. e3 {[%emt 0:00:03]} b5 {[%emt 0:01:20]} 12. Qxb5 {[%emt 0:00:57]} Rb8 {[%emt 0:00:02]} 13. Qa4 {[%emt 0:01:41]} Nb4 {[%emt 0:00:03]} 14. O-O {[%emt 0:00:14]} Bd7 {[%emt 0:00:43]} 15. Qd1 {[%emt 0:00:02]} Qe7 {[%emt 0:03:58]} 16. Na3 {[%emt 0:00:59]} Nd3 {[%emt 0:00:50]} 17. Nxc4 {[%emt 0:00:08]} Nxb2 {[%emt 0:00:02]} 18. Nxb2 {[%emt 0:00:02]} Rxb2 {[%emt 0:00:00]} 19. Qc1 {[%emt 0:00:05]} Qa3 {[%emt 0:00:06]} 20. Qxc7 {[%emt 0:00:58]} Bb5 {[%emt 0:00:03]} 21. Rfb1 {[%emt 0:00:21]} Bd3 {[%emt 0:00:15]} 22. Rxb2 {[%emt 0:00:37]} Qxb2 {[%emt 0:00:05]} 23. Qc1 {[%emt 0:00:10]} Qb4 {[%emt 0:00:46]} 24. Qd1 {[%emt 0:00:23]} Qa3 {[%emt 0:00:29]} 25. Qb3 {[%emt 0:00:44]} Qxb3 {[%emt 0:00:02]} 26. axb3 {[%emt 0:00:02]} Rc8 {[%emt 0:00:27]} 27. d5 {[%emt 0:01:08]} exd5 {[%emt 0:00:05]} 28. Bxd5 {[%emt 0:00:03]} Rc7 {[%emt 0:00:04]} 29. e4 {[%emt 0:00:25]} g5 {[%emt 0:00:13]} 30. f3 {[%emt 0:00:22]} Kg7 {[%emt 0:00:02]} 31. Kf2 {[%emt 0:00:03]} a6 {[%emt 0:00:02]} 32. Ke3 {[%emt 0:00:04]} Bb5 {[%emt 0:00:02]} 33. Kd4 {[%emt 0:00:19]} Rc2 {[%emt 0:00:03]} 34. h4 {[%emt 0:00:07]} gxh4 {[%emt 0:00:05]} 35. gxh4 {[%emt 0:00:03]} Rh2 {[%emt 0:00:08]} 36. Rg1+ {[%emt 0:00:12]} Kf8 {[%emt 0:00:01]} 37. Rg4 {[%emt 0:00:05]} Be8 {[%emt 0:00:16]} 38. e5 {[%emt 0:00:13]} Ke7 {[%emt 0:00:04]} 39. Bc4 {[%emt 0:00:09]} a5 {[%emt 0:00:04]} 40. Rf4 {[%emt 0:00:07]} Rf2 {[%emt 0:00:07]} 41. Kc5 {[%emt 0:00:04]} Rc2 {[%emt 0:00:06]} 42. Kb6 {[%emt 0:00:05]} Rc1 {[%emt 0:00:06]} 43. Kxa5 {[%emt 0:00:03]} Re1 {[%emt 0:00:01]} 44. Rf5 {[%emt 0:00:06]} Rh1 {[%emt 0:00:03]} 45. h5 {[%emt 0:00:02]} Rb1 {[%emt 0:00:10]} 46. Kb4 {[%emt 0:00:03]} Rb2 {[%emt 0:00:01]} 47. Kc5 {[%emt 0:00:04]} Rc2 {[%emt 0:00:03]} 48. h6 {[%emt 0:00:06]} Kd8 {[%emt 0:00:02]} 49. Kb4 {[%emt 0:00:04]} Ke7 {[%emt 0:00:02]} 50. f4 {[%emt 0:00:02]} Rf2 {[%emt 0:00:08]} 51. Rf6 {[%emt 0:00:02]} Rf3 {[%emt 0:00:02]} 52. Kc5 {[%emt 0:00:03]} Rc3 {[%emt 0:00:02]} 53. Kd4 {[%emt 0:00:02]} Rc1 {[%emt 0:00:02]} 54. Bd3 {[%emt 0:00:05]} Rd1 {[%emt 0:00:05]} 55. Kc3 {[%emt 0:00:02]} Rh1 {[%emt 0:00:11]} 56. Bxh7 {[%emt 0:00:04]} Bd7 {[%emt 0:00:02]} 57. Be4 {[%emt 0:00:06]} Rh3+ {[%emt 0:00:02]} 58. Kd4 {[%emt 0:00:09]} Be6 {[%emt 0:00:09]} 59. b4 {[%emt 0:00:03]} Rb3 {[%emt 0:00:03]} 60. Kc5 {[%emt 0:00:07]} Rc3+ {[%emt 0:00:01]} 61. Kb5 {[%emt 0:00:12]} Bd7+ {[%emt 0:00:19]} 62. Kb6 {[%emt 0:00:03]} Be6 {[%emt 0:00:06]} 63. h7 {[%emt 0:00:03]} Rh3 {[%emt 0:00:01]} 64. b5 {[%emt 0:00:06]} Kf8 {[%emt 0:00:03]} 65. f5 {[%emt 0:00:07]} Bd7 {[%emt 0:00:06]} 66. e6 {[%emt 0:00:07]} Be8 {[%emt 0:00:02]} 67. exf7 {[%emt 0:00:02]} Bd7 {[%emt 0:00:04]} 68. Rd6 {[%emt 0:00:04]} 1-0

[Event "Polgar Challenge 2021"]
[Site "Online"]
[Date "2021.04.04"]
[Round "11.8"]
[White "Mendonca, Leon Luke"]
[Black "Mammadzada, Gunay"]
[Result "1-0"]
[ECO "D15"]
[WhiteElo "2549"]
[BlackElo "2443"]
[Annotator "ChessBase"]
[PlyCount "51"]
[EventDate "2021.04.08"]
[EventType "tourn"]
[EventCountry "NET"]
[SourceTitle "playchess.com"]
[Source "ChessBase"]
[SourceQuality "1"]
[TimeControl "600+5"]

1. d4 {[%emt 0:00:00]} d5 {[%emt 0:00:00]} 2. c4 {[%emt 0:00:05]} c6 {[%emt 0:00:00]} 3. Nf3 {[%emt 0:00:06]} Nf6 {[%emt 0:00:00]} 4. e3 {[%emt 0:00:45]} Bf5 {[%emt 0:00:04]} 5. Nc3 {[%emt 0:00:03]} a6 {[%emt 0:00:03]} 6. Ne5 {[%emt 0:01:54]} Nbd7 {[%emt 0:00:03]} 7. Qb3 {[%emt 0:00:05]} Qc7 {[%emt 0:00:03]} 8. cxd5 {[%emt 0:00:25]} Nxe5 {[%emt 0:00:05]} 9. dxe5 {[%emt 0:00:01]} Nxd5 {[%emt 0:00:01]} 10. Bc4 {[%emt 0:00:09]} e6 {[%emt 0:00:34]} 11. e4 {[%emt 0:00:09]} Nxc3 {[%emt 0:00:38]} 12. exf5 {[%emt 0:00:04]} Nd5 {[%emt 0:05:22]} 13. O-O {[%emt 0:00:41]} O-O-O {[%emt 0:01:04]} 14. Bg5 {[%emt 0:01:01]} Rd7 {[%emt 0:00:21]} 15. fxe6 {[%emt 0:00:35]} fxe6 {[%emt 0:00:00]} 16. Rac1 {[%emt 0:00:10]} h6 {[%emt 0:00:45]} 17. Be3 {[%emt 0:01:42]} Qxe5 {[%emt 0:01:11]} 18. Rfe1 {[%emt 0:00:33]} Bd6 {[%emt 0:00:51]} 19. g3 {[%emt 0:00:07]} Qf5 {[%emt 0:00:09]} 20. Bxa6 {[%emt 0:01:07]} bxa6 {[%emt 0:00:05]} 21. Rxc6+ {[%emt 0:00:02]} Kd8 {[%emt 0:00:06]} 22. Rxd6 {[%emt 0:00:12]} Rxd6 {[%emt 0:00:08]} 23. Qb8+ {[%emt 0:00:02]} Ke7 {[%emt 0:00:01]} 24. Qxh8 {[%emt 0:00:04]} Kf7 {[%emt 0:00:05]} 25. Bc5 {[%emt 0:00:40]} Rb6 {[%emt 0:00:25]} 26. Qf8+ {[%emt 0:00:08]} 1-0

[Event "Polgar Challenge 2021"]
[Site "Online"]
[Date "2021.04.04"]
[Round "11.9"]
[White "Abdumalik, Zhansaya"]
[Black "Murzin, Volodar"]
[Result "0-1"]
[ECO "B01"]
[WhiteElo "2472"]
[BlackElo "2478"]
[Annotator "ChessBase"]
[PlyCount "56"]
[EventDate "2021.04.08"]
[EventType "tourn"]
[EventCountry "NET"]
[SourceTitle "playchess.com"]
[Source "ChessBase"]
[SourceQuality "1"]
[TimeControl "600+5"]

1. e4 {[%emt 0:00:00]} c6 {[%emt 0:00:00]} 2. d4 {[%emt 0:00:00]} d5 {[%emt 0:00:00]} 3. Nd2 {[%emt 0:00:00]} dxe4 {[%emt 0:00:00]} 4. Nxe4 {[%emt 0:00:00]} Bf5 {[%emt 0:00:03]} 5. Ng3 {[%emt 0:00:00]} Bg6 {[%emt 0:00:01]} 6. Nh3 {[%emt 0:00:00]} Nf6 {[%emt 0:01:01]} 7. Nf4 {[%emt 0:00:03]} Nbd7 {[%emt 0:01:15]} 8. c3 {[%emt 0:00:05]} Qc7 {[%emt 0:00:50]} 9. Bc4 {[%emt 0:00:06]} e6 {[%emt 0:00:42]} 10. O-O {[%emt 0:00:28]} Bd6 {[%emt 0:00:04]} 11. Qf3 {[%emt 0:01:19]} O-O-O {[%emt 0:00:31]} 12. a4 {[%emt 0:00:15]} Nb6 {[%emt 0:00:13]} 13. Bb3 {[%emt 0:00:25]} Nbd5 {[%emt 0:00:07]} 14. Nxg6 {[%emt 0:00:40]} hxg6 {[%emt 0:00:06]} 15. a5 {[%emt 0:00:00]} a6 {[%emt 0:00:30]} 16. c4 {[%emt 0:00:27]} Ne7 {[%emt 0:00:07]} 17. d5 {[%emt 0:02:02]} exd5 {[%emt 0:00:22]} 18. cxd5 {[%emt 0:00:01]} Nexd5 {[%emt 0:00:01]} 19. h3 {[%emt 0:00:15]} Bf4 {[%emt 0:00:26]} 20. Ne4 {[%emt 0:00:18]} Nxe4 {[%emt 0:01:33]} 21. Bxd5 {[%emt 0:00:30]} Bh2+ {[%emt 0:01:35]} 22. Kh1 {[%emt 0:00:02]} cxd5 {[%emt 0:00:01]} 23. Be3 {[%emt 0:00:07]} Kb8 {[%emt 0:00:13]} 24. Rfc1 {[%emt 0:02:01]} Qd6 {[%emt 0:00:06]} 25. Qxf7 {[%emt 0:00:41]} Rhf8 {[%emt 0:00:24]} 26. Qxg7 {[%emt 0:00:05]} Be5 {[%emt 0:00:02]} 27. Qh7 {[%emt 0:00:27]} Rh8 {[%emt 0:00:05]} 28. Qf7 {[%emt 0:00:06]} Rdf8 {[%emt 0:00:02]} 0-1

[Event "Polgar Challenge 2021"]
[Site "Online"]
[Date "2021.04.04"]
[Round "12.2"]
[White "Murzin, Volodar"]
[Black "Khademalsharieh, Sarasadat"]
[Result "1-0"]
[ECO "C78"]
[WhiteElo "2478"]
[BlackElo "2494"]
[Annotator "ChessBase"]
[PlyCount "101"]
[EventDate "2021.04.08"]
[EventType "tourn"]
[EventCountry "NET"]
[SourceTitle "playchess.com"]
[Source "ChessBase"]
[SourceQuality "1"]
[TimeControl "600+5"]

1. e4 {[%emt 0:00:00]} e5 {[%emt 0:00:00]} 2. Nf3 {[%emt 0:00:00]} Nc6 {[%emt 0:00:00]} 3. Bb5 {[%emt 0:00:00]} a6 {[%emt 0:00:00]} 4. Ba4 {[%emt 0:00:01]} Nf6 {[%emt 0:00:00]} 5. O-O {[%emt 0:00:01]} b5 {[%emt 0:00:00]} 6. Bb3 {[%emt 0:00:03]} Bc5 {[%emt 0:00:01]} 7. c3 {[%emt 0:00:02]} d6 {[%emt 0:00:01]} 8. d4 {[%emt 0:00:02]} Bb6 {[%emt 0:00:02]} 9. Be3 {[%emt 0:00:02]} Bg4 {[%emt 0:00:36]} 10. Nbd2 {[%emt 0:00:03]} O-O {[%emt 0:00:37]} 11. h3 {[%emt 0:00:06]} Bh5 {[%emt 0:00:37]} 12. dxe5 {[%emt 0:00:05]} Nxe5 {[%emt 0:00:39]} 13. Bxb6 {[%emt 0:00:03]} cxb6 {[%emt 0:00:04]} 14. g4 {[%emt 0:00:03]} Bg6 {[%emt 0:00:14]} 15. Nd4 {[%emt 0:00:06]} Nxe4 {[%emt 0:01:36]} 16. f4 {[%emt 0:00:10]} Qh4 {[%emt 0:00:12]} 17. Nxe4 {[%emt 0:00:06]} Bxe4 {[%emt 0:00:03]} 18. Qe1 {[%emt 0:00:01]} Qxh3 {[%emt 0:01:49]} 19. Qxe4 {[%emt 0:00:03]} Nxg4 {[%emt 0:00:01]} 20. Qg2 {[%emt 0:00:02]} Qxg2+ {[%emt 0:00:03]} 21. Kxg2 {[%emt 0:00:00]} Ne3+ {[%emt 0:00:01]} 22. Kf3 {[%emt 0:00:01]} Nxf1 {[%emt 0:00:01]} 23. Rxf1 {[%emt 0:00:00]} g6 {[%emt 0:00:16]} 24. Rd1 {[%emt 0:00:07]} Rad8 {[%emt 0:00:09]} 25. Nc6 {[%emt 0:00:24]} Rd7 {[%emt 0:00:03]} 26. Nb4 {[%emt 0:00:03]} a5 {[%emt 0:00:58]} 27. Nd5 {[%emt 0:00:02]} Rb7 {[%emt 0:00:03]} 28. f5 {[%emt 0:00:47]} gxf5 {[%emt 0:00:17]} 29. Bc2 {[%emt 0:00:33]} Rc8 {[%emt 0:01:07]} 30. Bxf5 {[%emt 0:00:06]} Rc5 {[%emt 0:00:03]} 31. Be4 {[%emt 0:00:20]} Rb8 {[%emt 0:00:04]} 32. Nf6+ {[%emt 0:00:03]} Kg7 {[%emt 0:00:08]} 33. Nd7 {[%emt 0:00:04]} Rd8 {[%emt 0:00:02]} 34. Rg1+ {[%emt 0:00:34]} Kh8 {[%emt 0:00:08]} 35. Nxc5 {[%emt 0:00:07]} dxc5 {[%emt 0:00:09]} 36. Ke3 {[%emt 0:00:25]} Rd6 {[%emt 0:00:02]} 37. Rg2 {[%emt 0:00:21]} h6 {[%emt 0:00:11]} 38. Kf4 {[%emt 0:01:14]} Rd1 {[%emt 0:00:57]} 39. Ke5 {[%emt 0:00:13]} Re1 {[%emt 0:00:02]} 40. Kd5 {[%emt 0:00:09]} Rf1 {[%emt 0:00:40]} 41. Kc6 {[%emt 0:00:16]} f5 {[%emt 0:00:41]} 42. Bd3 {[%emt 0:00:03]} Ra1 {[%emt 0:00:05]} 43. Bxf5 {[%emt 0:00:44]} Rxa2 {[%emt 0:00:04]} 44. Kxb5 {[%emt 0:00:03]} a4 {[%emt 0:00:02]} 45. Be6 {[%emt 0:00:02]} Ra1 {[%emt 0:00:08]} 46. Kxb6 {[%emt 0:00:01]} Re1 {[%emt 0:00:05]} 47. Bd5 {[%emt 0:00:11]} Rc1 {[%emt 0:00:24]} 48. Kxc5 {[%emt 0:00:21]} a3 {[%emt 0:00:01]} 49. Kb4 {[%emt 0:00:15]} axb2 {[%emt 0:00:07]} 50. Rxb2 {[%emt 0:00:02]} Kg7 {[%emt 0:00:06]} 51. c4 {[%emt 0:00:07]} 1-0

[Event "Polgar Challenge 2021"]
[Site "Online"]
[Date "2021.04.04"]
[Round "12.3"]
[White "Mammadzada, Gunay"]
[Black "Abdumalik, Zhansaya"]
[Result "1-0"]
[ECO "C89"]
[WhiteElo "2443"]
[BlackElo "2472"]
[Annotator "ChessBase"]
[PlyCount "103"]
[EventDate "2021.04.08"]
[EventType "tourn"]
[EventCountry "NET"]
[SourceTitle "playchess.com"]
[Source "ChessBase"]
[SourceQuality "1"]
[TimeControl "600+5"]

1. e4 {[%emt 0:00:00]} e5 {[%emt 0:00:00]} 2. Nf3 {[%emt 0:00:00]} Nc6 {[%emt 0:00:00]} 3. Bb5 {[%emt 0:00:00]} a6 {[%emt 0:00:00]} 4. Ba4 {[%emt 0:00:00]} Nf6 {[%emt 0:00:00]} 5. O-O {[%emt 0:00:03]} Be7 {[%emt 0:00:00]} 6. Re1 {[%emt 0:00:01]} b5 {[%emt 0:00:00]} 7. Bb3 {[%emt 0:00:02]} O-O {[%emt 0:00:01]} 8. c3 {[%emt 0:00:10]} d5 {[%emt 0:00:28]} 9. exd5 {[%emt 0:00:04]} Nxd5 {[%emt 0:00:01]} 10. Nxe5 {[%emt 0:00:01]} Nxe5 {[%emt 0:00:01]} 11. Rxe5 {[%emt 0:00:01]} c6 {[%emt 0:00:01]} 12. d3 {[%emt 0:00:01]} Bd6 {[%emt 0:00:10]} 13. Re1 {[%emt 0:00:02]} Bf5 {[%emt 0:00:00]} 14. Qf3 {[%emt 0:00:05]} Qd7 {[%emt 0:00:06]} 15. Bxd5 {[%emt 0:01:28]} cxd5 {[%emt 0:00:02]} 16. Bf4 {[%emt 0:00:04]} Bxf4 {[%emt 0:00:09]} 17. Qxf4 {[%emt 0:00:01]} Bxd3 {[%emt 0:00:03]} 18. Nd2 {[%emt 0:00:03]} d4 {[%emt 0:00:20]} 19. cxd4 {[%emt 0:01:27]} Rad8 {[%emt 0:00:02]} 20. Nf3 {[%emt 0:00:07]} Bc4 {[%emt 0:00:06]} 21. b3 {[%emt 0:01:19]} Bd5 {[%emt 0:00:04]} 22. Rad1 {[%emt 0:00:02]} Qb7 {[%emt 0:00:21]} 23. Re3 {[%emt 0:00:11]} a5 {[%emt 0:00:29]} 24. Nh4 {[%emt 0:00:18]} Rfe8 {[%emt 0:00:36]} 25. Nf5 {[%emt 0:00:22]} Rxe3 {[%emt 0:00:03]} 26. fxe3 {[%emt 0:00:45]} g6 {[%emt 0:01:49]} 27. Rc1 {[%emt 0:00:24]} Qd7 {[%emt 0:00:33]} 28. Qg5 {[%emt 0:01:53]} Re8 {[%emt 0:00:44]} 29. Rf1 {[%emt 0:00:29]} Qd8 {[%emt 0:01:19]} 30. Qxd8 {[%emt 0:01:19]} Rxd8 {[%emt 0:00:01]} 31. Ne7+ {[%emt 0:00:02]} Kg7 {[%emt 0:00:01]} 32. Nxd5 {[%emt 0:00:04]} Rxd5 {[%emt 0:00:00]} 33. Rc1 {[%emt 0:00:05]} a4 {[%emt 0:00:05]} 34. b4 {[%emt 0:00:04]} f5 {[%emt 0:00:14]} 35. Rc5 {[%emt 0:00:42]} Rd7 {[%emt 0:00:07]} 36. Rxb5 {[%emt 0:00:10]} f4 {[%emt 0:00:01]} 37. Kf2 {[%emt 0:00:02]} fxe3+ {[%emt 0:00:33]} 38. Kxe3 {[%emt 0:00:00]} Re7+ {[%emt 0:00:00]} 39. Re5 {[%emt 0:00:01]} Rc7 {[%emt 0:00:01]} 40. Kd3 {[%emt 0:00:19]} Rc1 {[%emt 0:00:04]} 41. Ra5 {[%emt 0:00:06]} Rd1+ {[%emt 0:00:05]} 42. Kc4 {[%emt 0:00:03]} Rd2 {[%emt 0:00:03]} 43. Rxa4 {[%emt 0:00:02]} Rxg2 {[%emt 0:00:00]} 44. b5 {[%emt 0:00:01]} Rxh2 {[%emt 0:00:04]} 45. b6 {[%emt 0:00:05]} Rc2+ {[%emt 0:00:01]} 46. Kb5 {[%emt 0:00:12]} Rc8 {[%emt 0:00:25]} 47. Rc4 {[%emt 0:00:01]} Rb8 {[%emt 0:00:02]} 48. a4 {[%emt 0:00:03]} h5 {[%emt 0:00:01]} 49. a5 {[%emt 0:00:01]} h4 {[%emt 0:00:01]} 50. a6 {[%emt 0:00:01]} h3 {[%emt 0:00:00]} 51. a7 {[%emt 0:00:03]} Rh8 {[%emt 0:00:06]} 52. Rc1 {[%emt 0:00:04]} 1-0

[Event "Polgar Challenge 2021"]
[Site "Online"]
[Date "2021.04.04"]
[Round "12.5"]
[White "Badelka, Olga"]
[Black "Keymer, Vincent"]
[Result "0-1"]
[ECO "A07"]
[WhiteElo "2433"]
[BlackElo "2591"]
[Annotator "ChessBase"]
[PlyCount "86"]
[EventDate "2021.04.08"]
[EventType "tourn"]
[EventCountry "NET"]
[SourceTitle "playchess.com"]
[Source "ChessBase"]
[SourceQuality "1"]
[TimeControl "600+5"]

1. Nf3 {[%emt 0:00:00]} d5 {[%emt 0:00:00]} 2. g3 {[%emt 0:00:00]} Bg4 {[%emt 0:00:00]} 3. Bg2 {[%emt 0:00:00]} c6 {[%emt 0:00:00]} 4. h3 {[%emt 0:00:03]} Bh5 {[%emt 0:00:07]} 5. O-O {[%emt 0:00:02]} Nd7 {[%emt 0:00:04]} 6. d4 {[%emt 0:00:02]} Ngf6 {[%emt 0:00:06]} 7. c4 {[%emt 0:00:02]} e6 {[%emt 0:00:03]} 8. cxd5 {[%emt 0:00:05]} exd5 {[%emt 0:00:01]} 9. Nh4 {[%emt 0:00:01]} Bg6 {[%emt 0:00:19]} 10. Nc3 {[%emt 0:00:11]} Be7 {[%emt 0:00:19]} 11. Nxg6 {[%emt 0:00:19]} hxg6 {[%emt 0:00:02]} 12. Bf4 {[%emt 0:00:24]} O-O {[%emt 0:00:12]} 13. Qd2 {[%emt 0:00:29]} Re8 {[%emt 0:00:17]} 14. h4 {[%emt 0:00:11]} Nf8 {[%emt 0:00:07]} 15. Qd3 {[%emt 0:00:47]} a5 {[%emt 0:00:44]} 16. Rad1 {[%emt 0:00:05]} Bd6 {[%emt 0:00:20]} 17. e3 {[%emt 0:02:20]} Be7 {[%emt 0:01:00]} 18. Bf3 {[%emt 0:00:16]} Ne6 {[%emt 0:00:09]} 19. Kg2 {[%emt 0:00:10]} Nxf4+ {[%emt 0:00:50]} 20. exf4 {[%emt 0:00:01]} Qd7 {[%emt 0:00:02]} 21. Rh1 {[%emt 0:00:25]} Qf5 {[%emt 0:00:05]} 22. h5 {[%emt 0:01:26]} Qxd3 {[%emt 0:00:21]} 23. Rxd3 {[%emt 0:00:00]} gxh5 {[%emt 0:00:15]} 24. Bxh5 {[%emt 0:00:03]} g6 {[%emt 0:00:17]} 25. Bd1 {[%emt 0:01:03]} Nd7 {[%emt 0:01:07]} 26. f5 {[%emt 0:01:07]} Bf6 {[%emt 0:01:05]} 27. fxg6 {[%emt 0:00:02]} fxg6 {[%emt 0:00:00]} 28. Ne2 {[%emt 0:00:33]} Nf8 {[%emt 0:00:34]} 29. Kf1 {[%emt 0:01:18]} Ra6 {[%emt 0:00:55]} 30. Rb3 {[%emt 0:00:03]} Re7 {[%emt 0:00:04]} 31. Bc2 {[%emt 0:00:05]} Kg7 {[%emt 0:00:13]} 32. g4 {[%emt 0:00:13]} a4 {[%emt 0:00:49]} 33. Rg3 {[%emt 0:00:04]} Rf7 {[%emt 0:01:46]} 34. Re3 {[%emt 0:00:18]} Rb6 {[%emt 0:00:06]} 35. b3 {[%emt 0:00:04]} axb3 {[%emt 0:00:02]} 36. axb3 {[%emt 0:00:02]} Rb4 {[%emt 0:00:07]} 37. Rd3 {[%emt 0:00:12]} Ne6 {[%emt 0:00:28]} 38. g5 {[%emt 0:00:01]} Bxd4 {[%emt 0:00:03]} 39. Nxd4 {[%emt 0:00:26]} Rxd4 {[%emt 0:00:01]} 40. Rg3 {[%emt 0:00:03]} Rd2 {[%emt 0:00:03]} 41. Bxg6 {[%emt 0:00:14]} Rfxf2+ {[%emt 0:00:10]} 42. Kg1 {[%emt 0:00:01]} Rfe2 {[%emt 0:00:05]} 43. Rh7+ {[%emt 0:00:17]} Kxg6 {[%emt 0:00:03]} 0-1